fUSD/lending_fUSD_20241108
["ID","MTS","AMOUNT","RATE_DAILY","PERIOD"]
[341638623,1731053443076,-736.71490228,0.00026963,2]
[341638635,1731053443182,-6262.329368,0.00026963,2]
[341638637,1731053443196,-70416.82807286,0.00026963,2]
[341638639,1731053443205,-122485.42623102,0.00026964,2]
[341638655,1731053443341,-5940.52251714,0.00026964,2]
[341638657,1731053443354,-9786.26163477,0.00026964,2]
[341638907,1731053445924,-2918.5,0.00026964,2]
[341638909,1731053445936,-7621.2,0.00026964,2]
[341638930,1731053446135,-2794.5,0.00026964,2]
[341638959,1731053446433,-1595.25057606,0.00026964,2]
[341639257,1731053449403,150.5838706,0.00018123,2]
[341639794,1731053461259,275.0,0.00019725,2]
[341639795,1731053673885,179.38,0.00015342,2]
[341639796,1731053839002,510.52,0.00024878,120]
[341640149,1731054185914,160.68,0.00015342,2]
[341640150,1731054291990,331.79,0.00022523,2]
[341640151,1731054333107,-200.0,0.00023,2]
[341640152,1731054333130,-278.985951,0.00023327,2]
[341640153,1731054333152,-962.06188692,0.000239,2]
[341640154,1731054336461,450.0,0.00021,2]
[341640155,1731054393758,172.16,0.00024877,30]
[341640157,1731054518467,150.0,0.000228,2]
[341640159,1731054545245,-200.0,0.00023,2]
[341640160,1731054545266,-1055.93811308,0.000239,2]
[341640161,1731054545288,-166.9742637,0.0002392,2]
[341640162,1731054545310,-2019.71,0.00023965,2]
[341640163,1731054545331,-775.94025814,0.0002402,2]
[341640164,1731054545351,-401.63969014,0.0002421,2]
[341640165,1731054545372,-3520.58064285,0.0002421,2]
[341640166,1731054545396,-2019.71,0.0002435,2]
[341640167,1731054545417,-14152.65,0.00024365,2]
[341640168,1731054545438,-619.37,0.00024365,2]
[341640169,1731054545460,-2561.01,0.00024365,2]
[341640170,1731054545485,-391.58,0.00024422,2]
[341640171,1731054545515,-250.0,0.00024422,2]
[341640172,1731054545537,-640.0,0.00024448,2]
[341640173,1731054545560,-8623.34896051,0.0002445,2]
[341640174,1731054545582,-200.0,0.00024483,2]
[341640175,1731054545604,-250.0,0.00024523,2]
[341640176,1731054545625,-200.0,0.00024525,2]
[341640177,1731054545646,-468.34,0.00024542,2]
[341640178,1731054545667,-16664.72,0.00024597,2]
[341640179,1731054545688,-1811.33,0.00024602,2]
[341640180,1731054545709,-803.0,0.00024627,2]
[341640181,1731054545729,-2967.03,0.00024628,2]
[341640182,1731054545755,-1500.0,0.00024658,2]
[341640183,1731054545776,-446.69,0.00024707,2]
[341640184,1731054545798,-861.59,0.00024707,2]
[341640185,1731054545821,-2019.71,0.00024735,2]
[341640186,1731054545842,-466.82,0.00024752,2]
[341640187,1731054545864,-331.79,0.00024787,2]
[341640188,1731054545886,-1058.92,0.00024797,2]
[341640189,1731054545907,-167.31,0.00024876,2]
[341640190,1731054545929,-163.8,0.00024881,2]
[341640191,1731054545952,-360.0,0.00024919,2]
[341640192,1731054545973,-1085.55,0.00025005,2]
[341640193,1731054545998,-427.75,0.00025096,2]
[341640194,1731054546021,-427.75,0.00025096,2]
[341640195,1731054546044,-427.75,0.00025096,2]
[341640196,1731054546067,-427.75,0.00025096,2]
[341640197,1731054546092,-27418.24383488,0.000251,2]
[341640198,1731054546115,-207.9,0.000251,2]
[341640199,1731054546138,-2019.71,0.00025121,2]
[341640200,1731054554895,427.75,0.00025096,2]
[341640201,1731054556819,153.38389296,0.0002382,2]
[341640203,1731054602643,200.0,0.00023,2]
[341640223,1731054631989,-500.0,0.00025205,7]
[341640224,1731054631998,-500.0,0.00025205,7]
[341640225,1731054632007,-427.75,0.000253,2]
[341640226,1731054632016,-280.0,0.000253,10]
[341640227,1731054632024,-902.82,0.000253,2]
[341640228,1731054632034,-1974.37313,0.00025506,2]
[341640229,1731054632101,-45.33687,0.00025506,2]
[341640230,1731054632111,-529.46,0.00025521,2]
[341640231,1731054632120,-2889.2,0.00025891,2]
[341640232,1731054632129,-2019.71,0.00025891,2]
[341640233,1731054632138,-427.75,0.00026027,2]
[341640234,1731054632148,-484.00850145,0.00026041,2]
[341640235,1731054632158,-427.75,0.00026041,2]
[341640236,1731054632167,-427.75,0.00026055,2]
[341640237,1731054632178,-200.0,0.000261,9]
[341640238,1731054632187,-173.46,0.00026192,2]
[341640239,1731054632197,-150.0,0.00026192,2]
[341640240,1731054632206,-150.0,0.00026192,2]
[341640241,1731054632216,-150.0,0.00026192,2]
[341640242,1731054632225,-150.0,0.00026192,2]
[341640243,1731054632234,-150.0,0.00026192,2]
[341640244,1731054632243,-150.0,0.00026192,2]
[341640245,1731054632253,-150.0,0.00026192,2]
[341640246,1731054632262,-150.0,0.00026192,2]
[341640247,1731054632271,-150.0,0.00026192,2]
[341640248,1731054632280,-150.0,0.00026192,2]
[341640249,1731054632289,-150.0,0.00026192,2]
[341640250,1731054632299,-150.0,0.00026192,2]
[341640251,1731054632309,-150.0,0.00026192,2]
[341640252,1731054632318,-150.0,0.00026192,2]
[341640253,1731054632327,-500.0,0.000262,9]
[341640254,1731054632336,-2019.71,0.00026276,2]
[341640255,1731054632345,-800.0,0.000263,9]
[341640256,1731054632354,-1100.0,0.000264,9]
[341640257,1731054632368,-1400.0,0.000265,9]
[341640258,1731054632377,-231.4984,0.000266,2]
[341640260,1731054632386,-5302.5732,0.000266,2]
[341640262,1731054632395,-1096.8055,0.000266,2]
[341640264,1731054632404,-361.5915,0.000266,2]
[341640266,1731054632414,-200.0,0.000266,9]
[341640268,1731054632423,-767.52530477,0.000266,2]
[341640270,1731054632432,-420.35743639,0.00026616,2]
[341640272,1731054632441,-767.5253047,0.00026635,2]
[341640274,1731054632450,-2019.71,0.00026661,2]
[341640276,1731054632458,-767.5253047,0.0002667,2]
[341640278,1731054632467,-500.0,0.00026673,2]
[341640280,1731054632476,-500.0,0.00026673,2]
[341640282,1731054632485,-2000.0,0.0002669,2]
[341640284,1731054632494,-190.08,0.0002669,3]
[341640286,1731054632503,-500.0,0.00026699,2]
[341640288,1731054632512,-500.0,0.00026699,2]
[341640290,1731054632521,-186.67564685,0.00026699,2]
[341640292,1731054632530,-500.0,0.00026699,2]
[341640294,1731054632538,-500.0,0.00026699,2]
[341640295,1731054632549,-3749.15370956,0.00026699,2]
[341640297,1731054632558,-34094.9126599,0.000267,2]
[341640299,1731054632570,-6475.96562991,0.000267,2]
[341640301,1731054632580,-2448.65676309,0.000267,2]
[341640303,1731054632591,-968.95274941,0.000267,2]
[341640305,1731054632602,-11414.72737238,0.000267,2]
[341640307,1731054632613,-921.63172689,0.000267,2]
[341640310,1731054632628,-1897.125,0.000267,2]
[341640312,1731054632638,-29762.07815478,0.000267,2]
[341640314,1731054632649,-899.999998,0.000267,2]
[341640383,1731054638438,-396.46343566,0.000267,2]
[341640384,1731054638468,-5986.14048,0.000267,2]
[341640385,1731054638479,-1994.65644769,0.000267,2]
[341640386,1731054638490,-1238.65005314,0.000267,2]
[341640387,1731054638508,-9853.85752915,0.000267,2]
[341640388,1731054638518,-6450.8351,0.000267,2]
[341640389,1731054638527,-77415.9555,0.000267,2]
[341640390,1731054638537,-200.0,0.000267,9]
[341640392,1731054638546,-767.5253047,0.00026705,2]
[341640394,1731054638558,-767.5253047,0.0002674,2]
[341640395,1731054638567,-767.5253047,0.00026774,2]
[341640396,1731054638576,-321.17955261,0.00026782,2]
[341640397,1731054638586,-160.53220446,0.00026782,2]
[341640398,1731054638595,-173.8898,0.00026784,2]
[341640399,1731054638604,-321.17955258,0.00026794,2]
[341640400,1731054638613,-672.903841,0.000268,2]
[341640401,1731054638622,-5299.144011,0.000268,2]
[341640402,1731054638631,-200.0,0.000268,9]
[341640403,1731054638640,-321.17955258,0.00026806,2]
[341640404,1731054638649,-767.5253047,0.00026809,2]
[341640405,1731054638658,-321.17955258,0.00026817,2]
[341640406,1731054638667,-321.17955258,0.00026829,2]
[341640407,1731054638676,-321.17955258,0.00026841,2]
[341640408,1731054638685,-767.5253047,0.00026844,2]
[341640409,1731054638694,-500.0,0.00026849,7]
[341640410,1731054638703,-500.0,0.00026849,7]
[341640411,1731054638712,-321.17955258,0.00026853,2]
[341640412,1731054638722,-321.17955258,0.00026865,2]
[341640413,1731054638730,-239.19857996,0.00026873,2]
[341640414,1731054638739,-500.0,0.00026873,2]
[341640415,1731054638748,-321.17955258,0.00026876,2]
[341640416,1731054638758,-767.5253047,0.00026879,2]
[341640417,1731054638767,-283979.25710847,0.0002688,2]
[341640418,1731054638776,-500.0,0.00026882,2]
[341640419,1731054638785,-321.17955258,0.00026888,2]
[341640420,1731054638794,-500.0,0.00026891,2]
[341640421,1731054638806,-158.09437817,0.00026898,2]
[341640422,1731054638815,-158.09437812,0.00026898,2]
[341640423,1731054638824,-158.09437812,0.00026899,2]
[341640424,1731054638834,-158.09437812,0.00026899,2]
[341640425,1731054638845,-158.09437812,0.000269,2]
[341640426,1731054638854,-500.0,0.000269,2]
[341640427,1731054638864,-4926.27237599,0.000269,2]
[341640428,1731054638873,-158.09437812,0.000269,2]
[341640429,1731054638882,-200.0,0.000269,9]
[341640430,1731054638891,-321.17955258,0.000269,2]
[341640431,1731054638900,-901.30487073,0.000269,2]
[341640432,1731054638909,-500.0,0.000269,2]
[341640433,1731054638918,-183.66772989,0.000269,2]
[341640434,1731054638927,-767.5253047,0.00026914,2]
[341640435,1731054638936,-150.110806,0.00026918,3]
[341640436,1731054638946,-3263.25708549,0.00026919,2]
[341640437,1731054638955,-1836.87604913,0.00026924,2]
[341640438,1731054638964,-101638.74552051,0.00026925,2]
[341640439,1731054638976,-14213.24814814,0.00026925,2]
[341640440,1731054638984,-150.110806,0.00026928,3]
[341640441,1731054638994,-1836.87604913,0.00026935,2]
[341640442,1731054639003,-150.110806,0.00026938,3]
[341640443,1731054639012,-1836.87604913,0.00026938,2]
[341640444,1731054639021,-1836.87604913,0.00026939,2]
[341640445,1731054639031,-115851.99366865,0.00026939,2]
[341640446,1731054639040,-6354.77540902,0.00026943,2]
[341640447,1731054639054,-6354.77540902,0.00026943,2]
[341640448,1731054639064,-1836.87604913,0.00026944,2]
[341640449,1731054639074,-3263.25708549,0.00026948,2]
[341640450,1731054639083,-150.110806,0.00026948,3]
[341640451,1731054639092,-6526.51417099,0.00026951,2]
[341640452,1731054639104,-3263.25708549,0.00026953,2]
[341640453,1731054639113,-6526.51417099,0.00026954,2]
[341640454,1731054639126,-3367.2962364,0.00026954,2]
[341640455,1731054639136,-2672.9403385,0.00026954,2]
[341640456,1731054639146,-6526.51417099,0.00026954,2]
[341640457,1731054639155,-6526.51417099,0.00026956,2]
[341640458,1731054639164,-13980.76568229,0.00026964,2]
[341640459,1731054639174,-200.0,0.00026964,2]
[341640460,1731054639183,-150.10304748,0.00026964,2]
[341640461,1731054639192,-6354.77540902,0.00026964,2]
[341640462,1731054639201,-115851.99366865,0.00026965,2]
[341640463,1731054639210,-2876.07503833,0.00026965,2]
[341640464,1731054639219,-115851.99366865,0.00026965,2]
[341640465,1731054639228,-13791.21315271,0.00026966,2]
[341640466,1731054639238,-115851.99366865,0.00026967,2]
[341640467,1731054639247,-2876.07503833,0.00026967,2]
[341640468,1731054639256,-3263.25708549,0.00026968,2]
[341640469,1731054639266,-19579.54251297,0.00026969,2]
[341640470,1731054639275,-1836.87604913,0.0002697,2]
[341640471,1731054639285,-163161.74514462,0.0002697,2]
[341640472,1731054639296,-526.78719633,0.0002697,2]
[341640475,1731054639999,-481.45853337,0.0002697,2]
[341640476,1731054640221,-530.41178616,0.0002697,2]
[341640647,1731054643107,-643.76980261,0.0002697,2]
[341640657,1731054643165,-1778.25417819,0.0002697,2]
[341640659,1731054643175,-200.0,0.00026971,2]
[341640661,1731054643184,-520.46663394,0.00026973,2]
[341640663,1731054643194,-193.51877146,0.00026973,2]
[341640668,1731054643225,-306.48122854,0.00026973,2]
[341640669,1731054643234,-347.12048366,0.00026973,2]
[341640672,1731054643245,-154.31674297,0.00026973,2]
[341640674,1731054643254,-339.79768715,0.00026973,2]
[341640676,1731054643263,-500.0,0.00026973,2]
[341640678,1731054643272,-500.0,0.00026973,2]
[341640680,1731054643281,-200.0,0.00026973,2]
[341640682,1731054643290,-256.53527651,0.00026973,2]
[341640684,1731054643304,-655.83198699,0.00026973,2]
[341640686,1731054643315,-621.09299228,0.00026973,2]
[341640692,1731054643362,-4226.67114634,0.00026973,2]
[341640694,1731054643373,-480.02236549,0.00026973,2]
[341640696,1731054643384,-636.42251208,0.00026973,2]
[341640700,1731054643412,-341.04230397,0.00026973,2]
[341640703,1731054643423,-1094.64910782,0.00026973,2]
[341640966,1731054646015,-641.89096198,0.00026973,2]
[341640967,1731054646027,-691.62218195,0.00026973,2]
[341640968,1731054646039,-638.14076411,0.00026973,2]
[341640969,1731054646054,-799.98954208,0.00026973,2]
[341640973,1731054646132,-1476.48708,0.00026973,2]
[341640975,1731054646146,-4383.99395773,0.00026973,2]
[341640977,1731054646161,-1390.5,0.00026973,2]
[341640986,1731054646244,-272.23953799,0.00026973,2]
[341640998,1731054646357,-67822.47924299,0.00026973,2]
[341641479,1731054661325,300.0,0.00019725,2]
[341641480,1731054662618,200.0,0.00023,2]
[341641482,1731054723236,200.0,0.00023,2]
[341641483,1731054748008,273.38314638,0.00018123,2]
[341641484,1731054749756,155.769,0.00021251,2]
[341641486,1731054753355,166.28,0.00015342,2]
[341641490,1731055122305,903.19223311,0.000228,2]
[341641491,1731055142232,3222.565261,0.00022785,2]
[341641803,1731055299692,155.39,0.00015342,2]
[341641805,1731055490515,623.15031019,0.00021867,2]
[341641806,1731055654140,-200.0,0.00023,2]
[341641807,1731055654162,-774.43857619,0.00023427,2]
[341641808,1731055654183,-719.71,0.00023527,2]
[341641809,1731055654204,-604.31487296,0.00023906,2]
[341641810,1731055654224,-6380.68548288,0.00023947,2]
[341641817,1731055745100,-3869.37375872,0.0002399,2]
[341641818,1731055745120,-10099.35379806,0.00023999,2]
[341641819,1731055745174,-8611.39818154,0.00023999,2]
[341641820,1731055747130,-19390.38340774,0.00023999,2]
[341641821,1731055747152,-173.14473892,0.00023999,2]
[341641822,1731055747175,-500.0,0.00023999,2]
[341641823,1731055747197,-500.0,0.00023999,2]
[341641824,1731055747221,-500.0,0.00023999,2]
[341641825,1731055747243,-500.0,0.00023999,2]
[341641826,1731055747264,-500.0,0.00023999,2]
[341641827,1731055747286,-500.0,0.00023999,2]
[341641828,1731055747308,-500.0,0.00023999,2]
[341641829,1731055747330,-500.0,0.00023999,2]
[341641830,1731055747351,-470.10059788,0.00023999,2]
[341641831,1731055747372,-500.0,0.00023999,2]
[341641832,1731055747392,-1500.23,0.00023999,2]
[341641833,1731055747413,-2172.0,0.00024,2]
[341641834,1731055747433,-5682.00280835,0.00024,2]
[341641835,1731055749487,-4317.98719165,0.00024,2]
[341641836,1731055749508,-1833.37986962,0.00024,2]
[341641837,1731055750097,-389.35013038,0.00024,2]
[341641838,1731055750120,-711.0,0.00024,2]
[341641839,1731055750141,-150.0,0.00024137,2]
[341641840,1731055750163,-4806.03,0.00024169,2]
[341641841,1731055750184,-173.36,0.00024169,2]
[341641842,1731055750205,-3655.51854022,0.00024169,2]
[341641843,1731055751154,-2995.38145978,0.00024169,2]
[341641844,1731055751179,-2449.7,0.00024749,2]
[341641850,1731055767186,-2449.7,0.00025147,2]
[341641853,1731055800920,2278.0,0.00024,2]
[341641857,1731055818834,274.8315,0.00021089,2]
[341641873,1731055832213,-500.0,0.00025205,7]
[341641875,1731055832224,-605.58,0.00025258,2]
[341641877,1731055832238,-250.0,0.00025258,2]
[341641878,1731055832250,-250.0,0.00025272,2]
[341641879,1731055832262,-159.6717191,0.000253,10]
[341641880,1731055832281,-120.3282809,0.000253,10]
[341641881,1731055832293,-200.0,0.00025318,2]
[341641882,1731055832304,-250.0,0.00025351,2]
[341641883,1731055832315,-496.79386992,0.00025372,2]
[341641884,1731055832338,-3.20613008,0.00025372,2]
[341641885,1731055832350,-417.27,0.00025372,2]
[341641886,1731055832362,-135.18978713,0.00025402,2]
[341641887,1731055832492,-864.81021287,0.00025402,2]
[341641888,1731055832503,-160.2,0.00025405,2]
[341641889,1731055832514,-1032.52,0.0002546,2]
[341641890,1731055832524,-2741.18149312,0.00025477,2]
[341641891,1731055832538,-6134.76850688,0.00025477,2]
[341641892,1731055832548,-23748.5,0.00025543,2]
[341641893,1731055832559,-2449.7,0.00025545,2]
[341641894,1731055832570,-164.87,0.00025572,2]
[341641895,1731055832580,-174.84,0.00025609,30]
[341641896,1731055832591,-167.84,0.00025714,2]
[341641898,1731055832601,-168.28,0.00025789,2]
[341641899,1731055832612,-195.8,0.00025789,120]
[341641900,1731055832622,-719.71,0.00025791,2]
[341641901,1731055832632,-2449.7,0.00025942,2]
[341641902,1731055832645,-2000.0,0.00026,2]
[341641903,1731055832655,-2000.0,0.00026,2]
[341641906,1731055832666,-173.36,0.00026077,2]
[341641908,1731055832676,-167.02,0.00026078,2]
[341641910,1731055832687,-2449.7,0.0002634,2]
[341641912,1731055832699,-552.23339976,0.00026379,2]
[341641913,1731055832709,-2408.73,0.0002638,3]
[341641914,1731055832719,-404.72934644,0.00026517,2]
[341641915,1731055832732,-318.37093957,0.00026554,2]
[341641916,1731055832742,-404.72934645,0.00026583,2]
[341641917,1731055832752,-28002.1547,0.000266,2]
[341641918,1731055832762,-16216.4012,0.000266,2]
[341641919,1731055832772,-234.4148781,0.00026623,2]
[341641920,1731055832782,-234.41487807,0.00026654,2]
[341641921,1731055832792,-152.0,0.00026675,3]
[341641922,1731055832802,-234.41487807,0.00026685,2]
[341641923,1731055832812,-5010.51888723,0.0002671,2]
[341641924,1731055832822,-234.41487807,0.00026715,2]
[341641926,1731055832832,-318.37093955,0.00026722,2]
[341641928,1731055832842,-150.0,0.00026723,2]
[341641930,1731055832853,-150.0,0.00026723,2]
[341641932,1731055832862,-500.0,0.00026733,2]
[341641935,1731055832872,-150.0,0.00026737,2]
[341641937,1731055832883,-150.0,0.00026737,2]
[341641939,1731055832893,-2449.7,0.00026738,2]
[341641941,1731055832903,-500.0,0.00026742,2]
[341641943,1731055832914,-150.0,0.00026742,2]
[341641945,1731055832924,-150.0,0.00026742,2]
[341641947,1731055832934,-234.41487807,0.00026746,2]
[341641949,1731055832944,-2000.0,0.00026748,5]
[341641952,1731055832955,-150.0,0.00026749,2]
[341641954,1731055832966,-500.0,0.0002675,2]
[341641956,1731055832978,-2000.0,0.00026753,5]
[341641958,1731055832988,-150.0,0.00026753,2]
[341641960,1731055832998,-150.0,0.00026755,2]
[341641962,1731055833008,-2000.0,0.00026756,5]
[341641964,1731055833019,-150.0,0.00026757,2]
[341641967,1731055833030,-150.0,0.00026759,2]
[341641969,1731055833040,-500.0,0.00026759,2]
[341641971,1731055833050,-150.0,0.00026762,2]
[341641973,1731055833062,-150.0,0.00026764,2]
[341641975,1731055833073,-150.0,0.00026765,2]
[341641977,1731055833084,-500.0,0.00026768,2]
[341641979,1731055833095,-150.0,0.00026769,2]
[341641981,1731055833105,-150.0,0.0002677,2]
[341641984,1731055833116,-150.0,0.00026771,2]
[341641986,1731055833130,-499.5,0.00026771,15]
[341641988,1731055833141,-150.0,0.00026773,2]
[341641990,1731055833152,-150.0,0.00026776,2]
[341641992,1731055833163,-500.0,0.00026777,2]
[341641994,1731055833175,-234.41487807,0.00026777,2]
[341641996,1731055833185,-150.0,0.0002678,2]
[341641998,1731055833196,-500.0,0.00026786,2]
[341642000,1731055833207,-150.91409496,0.00026788,2]
[341642002,1731055833219,-150.0,0.00026789,2]
[341642005,1731055833235,-150.0,0.00026789,2]
[341642007,1731055833247,-150.0,0.00026791,2]
[341642009,1731055833258,-150.0,0.00026792,2]
[341642011,1731055833269,-150.0,0.00026793,2]
[341642013,1731055833280,-500.0,0.00026794,2]
[341642015,1731055833291,-1500.0,0.00026795,2]
[341642017,1731055833302,-150.0,0.00026796,2]
[341642019,1731055833313,-150.0,0.00026796,2]
[341642021,1731055833324,-2500.0,0.00026797,2]
[341642023,1731055833335,-150.0,0.00026797,2]
[341642026,1731055833346,-150.0,0.00026797,2]
[341642028,1731055833357,-500.0,0.00026803,2]
[341642030,1731055833368,-150.0,0.00026806,2]
[341642032,1731055833379,-150.0,0.00026807,2]
[341642033,1731055833390,-234.41487807,0.00026808,2]
[341642059,1731055833732,-500.0,0.00026812,2]
[341642060,1731055833757,-150.0,0.00026814,2]
[341642061,1731055833773,-150.0,0.00026818,2]
[341642062,1731055833783,-150.0,0.00026819,2]
[341642063,1731055833793,-150.0,0.0002682,2]
[341642064,1731055833802,-500.0,0.00026821,2]
[341642065,1731055833812,-150.0,0.00026821,2]
[341642066,1731055833821,-150.0,0.00026822,2]
[341642067,1731055833831,-150.0,0.00026823,2]
[341642068,1731055833840,-500.0,0.0002683,2]
[341642069,1731055833850,-150.0,0.00026834,2]
[341642070,1731055833859,-150.0,0.00026836,2]
[341642071,1731055833868,-500.0,0.00026838,2]
[341642072,1731055833878,-234.41487807,0.00026838,2]
[341642073,1731055833887,-150.0,0.00026839,2]
[341642074,1731055833897,-150.0,0.00026842,2]
[341642075,1731055833906,-150.0,0.00026842,2]
[341642076,1731055833915,-500.0,0.00026847,2]
[341642077,1731055833924,-500.0,0.00026849,7]
[341642078,1731055833933,-753.0,0.00026849,2]
[341642079,1731055833942,-150.0,0.0002685,2]
[341642080,1731055833952,-150.0,0.00026852,2]
[341642081,1731055833961,-150.0,0.00026855,2]
[341642082,1731055833970,-500.0,0.00026856,2]
[341642083,1731055833980,-150.0,0.00026857,2]
[341642084,1731055833989,-150.0,0.00026858,2]
[341642085,1731055833998,-150.0,0.00026858,2]
[341642086,1731055834007,-150.0,0.00026859,2]
[341642087,1731055834016,-150.0,0.00026863,2]
[341642088,1731055834026,-150.0,0.00026864,2]
[341642089,1731055834035,-500.0,0.00026865,2]
[341642090,1731055834044,-1500.0,0.00026866,2]
[341642091,1731055834053,-150.0,0.00026866,2]
[341642092,1731055834063,-150.0,0.00026867,2]
[341642093,1731055834072,-234.41487807,0.00026869,2]
[341642094,1731055834081,-150.0,0.00026872,2]
[341642095,1731055834090,-500.0,0.00026874,2]
[341642096,1731055834099,-150.0,0.00026876,2]
[341642097,1731055834108,-150.0,0.00026876,2]
[341642098,1731055834117,-150.0,0.00026879,2]
[341642099,1731055834126,-500.0,0.00026882,2]
[341642100,1731055834135,-150.0,0.00026886,2]
[341642101,1731055834145,-150.0,0.00026886,2]
[341642102,1731055834154,-150.0,0.00026888,2]
[341642103,1731055834163,-150.0,0.00026888,2]
[341642104,1731055834172,-150.0,0.0002689,2]
[341642105,1731055834181,-318.37093955,0.0002689,2]
[341642106,1731055834190,-150.0,0.00026891,2]
[341642107,1731055834200,-500.0,0.00026891,2]
[341642108,1731055834209,-150.0,0.00026894,2]
[341642109,1731055834218,-150.0,0.00026895,2]
[341642110,1731055834228,-322.37957111,0.00026896,2]
[341642111,1731055834237,-68644.39365515,0.00026897,2]
[341642112,1731055834251,-13747.00997333,0.00026897,2]
[341642113,1731055834261,-11349.49722993,0.00026897,2]
[341642114,1731055834272,-4106.19048295,0.00026897,2]
[341642115,1731055834283,-2411.74993303,0.00026897,2]
[341642116,1731055834294,-1883.10503528,0.00026897,2]
[341642117,1731055838420,-1385.31154168,0.000252,2]
[341642118,1731055838429,-150.0,0.00026734,2]
[341642119,1731055838438,-150.0,0.00026744,2]
[341642120,1731055838447,-300.0,0.0002675,2]
[341642121,1731055838456,-150.0,0.00026807,2]
[341642122,1731055838465,-23.45515649,0.00026815,2]
[341642123,1731055838631,-126.54484351,0.00026815,2]
[341642124,1731055838643,-150.0,0.0002682,2]
[341642125,1731055838652,-150.0,0.00026834,2]
[341642126,1731055838661,-150.0,0.00026846,2]
[341642127,1731055838670,-150.0,0.00026885,2]
[341642128,1731055838679,-150.0,0.00026889,2]
[341642129,1731055838687,-150.0,0.00026892,2]
[341642130,1731055838697,-3385.24609033,0.00026897,2]
[341642131,1731055838706,-1000.0,0.00026897,2]
[341642132,1731055838715,-500.0,0.00026899,2]
[341642133,1731055838725,-500.0,0.00026899,2]
[341642134,1731055838735,-530.6729528,0.00026899,2]
[341642135,1731055838744,-3942.66864499,0.000269,2]
[341642136,1731055838752,-13346.24257966,0.000269,2]
[341642137,1731055838762,-234.41487807,0.000269,2]
[341642138,1731055838771,-150.0,0.00026904,2]
[341642139,1731055838780,-150.0,0.00026904,2]
[341642140,1731055838788,-150.0,0.00026907,2]
[341642141,1731055838797,-150.0,0.00026907,2]
[341642143,1731055838806,-235.80909282,0.00026907,2]
[341642145,1731055838815,-150.0,0.00026909,2]
[341642147,1731055838824,-150.0,0.0002691,2]
[341642149,1731055838833,-150.0,0.00026911,2]
[341642151,1731055838842,-1500.0,0.00026913,2]
[341642153,1731055838852,-150.0,0.00026913,2]
[341642154,1731055838861,-150.0,0.00026914,2]
[341642156,1731055838870,-19614.81161963,0.0002692,2]
[341642158,1731055838879,-22595.97832736,0.0002692,2]
[341642160,1731055838888,-27216.17964578,0.00026921,2]
[341642162,1731055838897,-19614.81161963,0.00026921,2]
[341642164,1731055838906,-2298.53552545,0.00026924,2]
[341642165,1731055838915,-2298.53552545,0.00026925,2]
[341642167,1731055838925,-150.0,0.0002693,2]
[341642169,1731055838934,-958.69167944,0.00026933,2]
[341642171,1731055838943,-22595.97832736,0.00026934,2]
[341642173,1731055838952,-150.0,0.00026936,2]
[341642175,1731055838961,-150.0,0.00026936,2]
[341642177,1731055838970,-9245.89507557,0.00026937,2]
[341642178,1731055838980,-150.0,0.00026937,2]
[341642180,1731055838989,-150.110806,0.00026938,3]
[341642182,1731055838999,-150.0,0.00026938,2]
[341642184,1731055839009,-150.0,0.00026938,2]
[341642186,1731055839018,-22595.97832736,0.00026939,2]
[341642188,1731055839027,-958.69167944,0.00026941,2]
[341642189,1731055839036,-42100.86493558,0.00026941,2]